bitfinex-derivatives/quotes_BNBF0:USTF0_20250507
["timestamp","ask_amount","ask_price","bid_price","bid_amount"]
[1746650431250,1.01888347,598.06,597.53,1.12471122]
[1746650431650,1.01888347,598.05,597.53,1.12471122]
[1746650432149,1.01888347,598.04,597.53,1.12471122]
[1746650432547,1.01888347,598.03,597.53,1.12471122]
[1746650433052,0.29106725,598.31,597.53,1.12471122]
[1746650433351,2.30087348,598.3,597.53,1.12471122]
[1746650433552,1.28168562,598.29,597.53,1.92771122]
[1746650433752,1.28168562,598.28,597.53,1.92771122]
[1746650433946,2.30087348,598.27,597.53,1.92771122]
[1746650434149,1.28168562,598.26,597.53,2.77171122]
[1746650434351,1.28168562,598.25,597.53,3.51371122]
[1746650434549,1.28168562,598.24,597.53,3.51371122]
[1746650434749,2.30087348,598.23,597.53,3.51371122]
[1746650435051,1.28168562,598.22,597.53,3.51371122]
[1746650435349,2.30087348,598.21,597.53,3.51371122]
[1746650435553,1.28168562,598.2,597.53,3.51371122]
[1746650435751,1.28168562,598.19,597.53,3.51371122]
[1746650435950,1.28168562,598.18,597.53,3.51371122]
[1746650436154,2.30087348,598.17,597.53,3.51371122]
[1746650436353,1.28168562,598.16,597.53,3.51371122]
[1746650436555,2.30087348,598.15,597.53,3.51371122]
[1746650436756,1.28168562,598.14,597.53,3.51371122]
[1746650437056,2.30087348,598.13,597.53,3.51371122]
[1746650437351,1.28168562,598.12,597.53,3.51371122]
[1746650437551,2.30087348,598.11,597.53,3.51371122]
[1746650437756,1.28168562,598.1,597.53,3.51371122]
[1746650438055,1.01918786,598.11,597.53,3.51371122]
[1746650438056,1.28168562,598.09,597.53,3.51371122]
[1746650438250,1.01918786,598.08,597.53,3.51371122]
[1746650438451,1.28105571,598.07,597.53,3.51371122]
[1746650438652,1.28105571,598.06,597.53,3.51371122]
[1746650438855,2.30024357,598.05,597.53,2.72371122]
[1746650439053,1.28105571,598.04,597.53,2.72371122]
[1746650439251,1.28105571,598.03,597.53,2.72371122]
[1746650439453,1.28105571,598.02,597.53,2.72371122]
[1746650439653,1.28105571,598.01,597.53,2.72371122]
[1746650439952,1.01918786,598.0,597.53,2.72371122]
[1746650440357,1.01918786,597.99,597.53,2.72371122]
[1746650441057,1.01918786,597.98,597.53,2.72371122]
[1746650441458,1.01918786,597.97,597.53,2.72371122]
[1746650442152,1.01918786,597.96,597.53,2.72371122]
[1746650442553,1.01918786,597.95,597.53,2.72371122]
[1746650443058,0.2910989,598.24,597.53,2.72371122]
[1746650443259,1.27744374,598.23,597.53,2.72371122]
[1746650443454,2.29427128,598.22,597.53,2.72371122]
[1746650443654,1.27744374,598.21,597.53,2.72371122]
[1746650443855,2.29422212,598.2,597.53,2.72371122]
[1746650444153,1.27739458,598.19,597.53,2.72371122]
[1746650444457,1.27739458,598.18,597.53,2.72371122]
[1746650444657,1.27739458,598.17,597.53,2.72371122]
[1746650444857,1.27739458,598.16,597.53,2.72371122]
[1746650445158,1.27739458,598.15,597.53,2.72371122]
[1746650445458,1.27739458,598.14,597.53,2.72371122]
[1746650445654,2.29610213,598.13,597.53,2.72371122]
[1746650445958,1.27927459,598.12,597.53,2.72371122]
[1746650446158,2.29610213,598.11,597.53,2.72371122]
[1746650446358,1.27927459,598.1,597.53,2.72371122]
[1746650446558,1.27927459,598.09,597.53,2.72371122]
[1746650446758,2.29610213,598.08,597.53,2.72371122]
[1746650446958,1.27927459,598.07,597.53,2.72371122]
[1746650447159,1.27927459,598.06,597.53,2.72371122]
[1746650447458,1.27927459,598.05,597.53,2.72371122]
[1746650447659,2.29610213,598.04,597.53,2.72371122]
[1746650447856,1.27927459,598.03,597.53,2.72371122]
[1746650448152,1.27927459,598.02,597.53,2.72371122]
[1746650448356,1.01682754,598.01,597.53,2.72371122]
[1746650448560,1.01682754,598.0,597.53,1.92071122]
[1746650448957,1.01682754,597.99,597.53,1.92071122]
[1746650449454,1.01682754,597.98,597.53,1.92071122]
[1746650449958,0.29108916,598.24,597.53,1.92071122]
[1746650450156,1.2795513,598.23,597.53,1.92071122]
[1746650450354,1.2795513,598.22,597.53,1.92071122]
[1746650450558,2.29687907,598.21,597.53,1.92071122]
[1746650450755,1.2795513,598.2,597.53,1.92071122]
[1746650451060,2.29687907,598.19,597.53,1.92071122]
[1746650451359,1.2795513,598.18,597.53,1.92071122]
[1746650451560,1.2795513,598.17,597.53,2.96371122]
[1746650451762,2.29688245,598.16,597.53,2.96371122]
[1746650452060,1.27955468,598.15,597.53,2.96371122]
[1746650452263,2.29688245,598.14,597.53,2.96371122]
[1746650452460,1.27955468,598.13,597.53,2.96371122]
[1746650452661,1.27955468,598.12,597.53,2.96371122]
[1746650452960,2.29688245,598.11,597.53,2.96371122]
[1746650453157,1.27955468,598.1,597.53,2.96371122]
[1746650453363,1.27955468,598.09,597.53,2.96371122]
[1746650453563,1.27955468,598.08,597.53,2.96371122]
[1746650453763,1.27955468,598.07,597.53,2.96371122]
[1746650453960,1.27955468,598.06,597.53,2.96371122]
[1746650454160,1.27936205,598.05,597.53,2.96371122]
[1746650454358,1.27936205,598.04,597.53,2.96371122]
[1746650454571,1.27936205,598.03,597.53,2.96371122]
[1746650454761,1.27936205,598.02,597.53,2.96371122]
[1746650454959,1.01732777,598.02,597.53,2.96371122]
[1746650455362,1.01732777,598.01,597.53,2.96371122]
[1746650456162,1.01732777,598.0,597.53,2.96371122]
[1746650456765,1.01732777,597.99,597.53,2.96371122]
[1746650457167,0.29109646,598.24,597.53,2.96371122]
[1746650457359,1.2806221,598.23,597.53,2.96371122]
[1746650457564,1.2806221,598.22,597.53,2.96371122]
[1746650457761,1.2806221,598.21,597.53,2.96371122]
[1746650458060,2.29875323,598.2,597.53,2.96371122]
[1746650458365,1.2806221,598.19,597.53,2.96371122]
[1746650458565,1.2806221,598.18,597.53,2.96371122]
[1746650458764,2.29875323,598.17,597.53,2.96371122]
[1746650458960,1.2806221,598.16,597.53,2.96371122]
[1746650459167,2.29875323,598.15,597.53,2.96371122]
[1746650459459,1.2806221,598.14,597.53,2.96371122]
[1746650459665,2.29875323,598.13,597.53,2.96371122]
[1746650459961,1.2806221,598.12,597.53,2.96371122]
[1746650460166,1.2806221,598.11,597.53,2.96371122]
[1746650460366,1.28144786,598.1,597.53,2.96371122]
[1746650460567,1.28144786,598.09,597.53,2.96371122]
[1746650460766,1.28144786,598.08,597.53,2.96371122]
[1746650460968,1.28144786,598.07,597.53,2.96371122]
[1746650461169,2.29957899,598.06,597.53,2.96371122]
[1746650461365,1.28144786,598.05,597.53,2.22171122]
[1746650461668,2.29957899,598.04,597.53,2.22171122]
[1746650461869,1.28144786,598.03,597.53,2.22171122]
[1746650462069,2.29957899,598.02,597.53,2.22171122]
[1746650462265,1.28144786,598.01,597.53,2.22171122]
[1746650462464,1.28144786,598.0,597.53,2.22171122]
[1746650462669,1.01813113,597.99,597.53,2.22171122]
[1746650463068,1.01813113,597.98,597.53,2.22171122]
[1746650463666,1.01813113,597.97,597.53,2.22171122]
[1746650464370,0.29109646,598.24,597.53,2.22171122]
[1746650464571,1.28269877,598.23,597.53,2.22171122]
[1746650464871,2.30157046,598.22,597.53,2.22171122]
[1746650465072,1.28269877,598.21,597.53,3.30171122]
[1746650465371,2.30157046,598.2,597.53,3.30171122]
[1746650465565,1.28267485,598.19,597.53,3.30171122]
[1746650465870,1.28267485,598.18,597.53,3.30171122]
[1746650466070,1.28267485,598.17,597.53,3.30171122]
[1746650466270,2.30154654,598.16,597.53,3.30171122]
[1746650466470,1.28267485,598.15,597.53,3.30171122]
[1746650466670,2.30154654,598.14,597.53,3.30171122]
[1746650466970,1.28267485,598.13,597.53,3.30171122]
[1746650467170,2.30154654,598.12,597.53,3.30171122]
[1746650467370,1.28267485,598.11,597.53,3.30171122]
[1746650467670,1.28267485,598.1,597.53,3.30171122]
[1746650467870,2.30154654,598.09,597.53,3.30171122]
[1746650468067,1.28267485,598.08,597.53,3.30171122]
[1746650468269,1.28267485,598.07,597.53,3.30171122]
[1746650468467,2.30154654,598.06,597.53,3.30171122]
[1746650468668,1.28267485,598.05,597.53,3.30171122]
[1746650468869,2.30154654,598.04,597.53,3.30171122]
[1746650469069,1.28267485,598.03,597.53,3.30171122]
[1746650469269,1.28267485,598.02,597.53,3.30171122]
[1746650469472,2.30154654,598.01,597.53,3.30171122]
[1746650469673,1.28267485,598.0,597.53,3.30171122]
[1746650469973,2.30154654,597.99,597.53,3.30171122]
[1746650470174,1.01887169,597.99,597.53,3.30171122]
[1746650470775,1.01887169,597.98,597.53,3.30171122]
[1746650471173,1.01887169,597.97,597.53,3.30171122]
[1746650471776,0.33393999,598.91,597.53,3.30171122]
[1746650471777,0.29110012,598.24,597.53,3.30171122]
[1746650471980,1.28278716,598.23,597.53,3.30171122]
[1746650472176,1.28278716,598.22,597.53,3.30171122]
[1746650472476,2.30178487,598.21,597.53,3.30171122]
[1746650472673,1.28278716,598.2,597.53,3.30171122]
[1746650472872,1.28278716,598.19,597.53,3.30171122]
[1746650473172,2.30178487,598.18,597.53,3.30171122]
[1746650473376,1.28278716,598.17,597.53,3.30171122]
[1746650473569,2.30178487,598.16,597.53,3.30171122]
[1746650473773,1.28278716,598.15,597.53,3.30171122]
[1746650473974,1.28278716,598.14,597.53,3.30171122]
[1746650474181,2.30178487,598.13,597.53,3.30171122]
[1746650474481,1.28278716,598.12,597.53,3.30171122]
[1746650474683,2.30178487,598.11,597.53,3.30171122]
[1746650474877,1.28278716,598.1,597.53,3.30171122]
[1746650475081,2.30178487,598.09,597.53,3.30171122]
[1746650475377,1.28278716,598.08,597.53,3.30171122]
[1746650475581,2.30178487,598.07,597.53,3.30171122]
[1746650475782,1.28278716,598.06,597.53,3.30171122]
[1746650476080,2.30178487,598.05,597.53,2.25871122]
[1746650476282,1.28278716,598.04,597.53,2.25871122]
[1746650476482,2.30178487,598.03,597.53,2.25871122]
[1746650476782,1.28278716,598.02,597.53,2.25871122]
[1746650476984,1.28278716,598.01,597.53,2.25871122]
[1746650477181,1.01899771,598.02,597.53,2.25871122]
[1746650477377,1.28233868,598.01,597.53,2.25871122]
[1746650477576,1.01899771,598.01,597.53,2.25871122]
[1746650477978,1.01899771,598.0,597.53,2.25871122]
[1746650478479,1.01899771,597.99,597.53,2.25871122]
[1746650478983,0.29107577,598.33,597.53,2.25871122]
[1746650479177,1.2833533,598.32,597.53,2.25871122]
[1746650479382,2.30268461,598.31,597.53,2.25871122]
[1746650479579,0.29107577,598.33,597.53,2.25871122]
[1746650479580,2.30268461,598.3,597.53,2.25871122]
[1746650479881,1.2833533,598.29,597.53,2.25871122]
[1746650480082,1.2833533,598.28,597.53,2.25871122]
[1746650480277,2.30268461,598.27,597.53,2.25871122]
[1746650480480,1.2833533,598.26,597.53,2.25871122]
[1746650480680,1.2833533,598.25,597.53,2.25871122]
[1746650480882,1.2833533,598.24,597.53,2.25871122]
[1746650481079,1.2833533,598.23,597.53,2.25871122]
[1746650481284,1.2833533,598.22,597.53,2.25871122]
[1746650481483,2.30268461,598.21,597.53,2.25871122]
[1746650481684,1.2833533,598.2,597.53,2.25871122]
[1746650481885,1.2833533,598.19,597.53,2.25871122]
[1746650482086,2.30268461,598.18,597.53,2.25871122]
[1746650482381,1.28360433,598.17,597.53,2.25871122]
[1746650482581,1.28360433,598.16,597.53,2.25871122]
[1746650482880,2.30293564,598.15,597.53,2.25871122]
[1746650483084,1.28360433,598.14,597.53,2.25871122]
[1746650483285,2.30293564,598.13,597.53,2.25871122]
[1746650483480,1.28360433,598.12,597.53,2.25871122]
[1746650483686,1.28360433,598.11,597.53,2.25871122]
[1746650483887,1.28360433,598.1,597.53,2.25871122]
[1746650484082,2.30293564,598.09,597.53,2.25871122]
[1746650484282,1.28360433,598.08,597.53,2.25871122]
[1746650484486,2.30293564,598.07,597.53,2.25871122]
[1746650484686,1.28360433,598.06,597.53,2.25871122]
[1746650484886,1.28360433,598.05,597.53,2.25871122]
[1746650485185,1.01933131,598.07,597.53,2.25871122]
[1746650485186,2.30293564,598.04,597.53,2.25871122]
[1746650485386,1.28360433,598.03,597.53,2.25871122]
[1746650485687,1.28360433,598.02,597.53,2.25871122]
[1746650485885,1.28275423,598.01,597.53,2.25871122]
[1746650486086,1.28275423,598.0,597.53,2.25871122]
[1746650486286,2.30208554,597.99,597.53,2.25871122]
[1746650486483,1.28275423,597.98,597.53,2.25871122]
[1746650486788,1.28275423,597.97,597.53,2.25871122]
[1746650487083,2.30177054,597.96,597.53,2.25871122]
[1746650487388,2.30177054,597.95,597.53,1.41471122]
[1746650487582,1.28243923,597.94,597.53,1.41471122]
[1746650487784,1.28243923,597.93,597.53,1.41471122]
[1746650487986,1.28253599,597.92,597.53,1.41471122]
[1746650488286,1.01933131,597.91,597.53,1.41471122]
[1746650488789,1.01933131,597.9,597.53,1.41471122]
[1746650489391,1.01933131,597.89,597.53,1.41471122]
[1746650489891,1.01933131,597.88,597.53,1.41471122]
[1746650490191,1.01933131,597.87,597.53,1.41471122]
[1746650490486,1.01933131,597.86,597.53,1.41471122]
[1746650490891,1.01933131,597.85,597.53,1.41471122]
[1746650491593,0.29109768,598.24,597.53,1.41471122]
[1746650491594,1.01933131,597.84,597.53,1.41471122]
[1746650491994,1.01933131,597.83,597.53,1.41471122]
[1746650492793,1.01933131,597.82,597.53,1.41471122]
[1746650492992,1.01933131,597.82,597.53,0.33471122]
[1746650493494,0.29109768,598.24,597.53,0.33471122]
[1746650493696,1.28888979,598.23,597.53,0.33471122]
[1746650493895,1.28888979,598.22,597.53,0.33471122]
[1746650494093,1.28888979,598.21,597.53,0.33471122]
[1746650494293,1.28888979,598.2,597.53,0.33471122]
[1746650494491,2.31150342,598.19,597.53,0.33471122]
[1746650494794,2.31150342,598.18,597.53,0.33471122]
[1746650494998,2.31150342,598.17,597.53,0.33471122]
[1746650495198,1.28600226,598.16,597.53,0.33471122]
[1746650495394,2.30861589,598.15,597.53,0.33471122]
[1746650495599,2.30861589,598.14,597.53,0.33471122]
[1746650495793,1.28600226,598.13,597.53,0.33471122]
[1746650495996,1.28600226,598.12,597.53,0.33471122]
[1746650496193,2.30861589,598.11,597.53,0.33471122]
[1746650496393,1.28545038,598.1,597.53,0.33471122]
[1746650496595,1.28545038,598.09,597.53,0.33471122]
[1746650496797,2.30806401,598.08,597.53,1.14971122]
[1746650496999,1.28542662,598.07,597.53,1.14971122]
[1746650497199,1.28542662,598.06,597.53,1.14971122]
[1746650497501,1.28542662,598.05,597.53,1.14971122]
[1746650497700,1.28542662,598.04,597.53,1.14971122]
[1746650497902,1.28542662,598.03,597.53,1.14971122]
[1746650498101,2.30804025,598.02,597.53,1.14971122]
[1746650498304,1.28542662,598.01,597.53,1.14971122]
[1746650498496,1.28542662,598.0,597.53,1.14971122]
[1746650498698,1.28542662,597.99,597.53,1.14971122]
[1746650498899,1.28542662,597.98,597.53,1.14971122]
[1746650499100,1.28542662,597.97,597.53,1.14971122]
[1746650499301,1.28542662,597.96,597.53,1.14971122]
[1746650499499,2.30804025,597.95,597.53,1.14971122]
[1746650499802,2.30804025,597.94,597.53,1.14971122]
[1746650500003,1.28542662,597.93,597.53,1.14971122]
[1746650500203,1.28542662,597.92,597.53,1.14971122]
[1746650500499,1.28542662,597.91,597.53,1.14971122]
[1746650500804,1.28506576,597.9,597.53,1.14971122]
[1746650501004,2.30767939,597.89,597.53,1.14971122]
[1746650501206,1.28506576,597.88,597.53,1.14971122]
[1746650501406,2.30767939,597.87,597.53,1.14971122]
[1746650501605,1.02261363,597.87,597.53,1.14971122]
[1746650501806,1.02261363,597.86,597.53,1.14971122]
[1746650502402,1.02261363,597.85,597.53,1.14971122]
[1746650503006,1.02261363,597.84,597.53,1.14971122]
[1746650503705,0.29113786,598.13,597.53,1.14971122]
[1746650503901,1.28394207,598.12,597.53,1.14971122]
[1746650504102,1.28394207,598.11,597.53,2.25271122]
[1746650504307,2.30499656,598.1,597.53,2.25271122]
[1746650504503,1.28386771,598.09,597.53,2.25271122]
[1746650504707,2.3049222,598.08,597.53,2.25271122]
[1746650504903,1.28386771,598.07,597.53,2.25271122]
[1746650505108,2.3049222,598.06,597.53,2.25271122]
[1746650505308,1.28386771,598.05,597.53,2.25271122]
[1746650505507,2.3049222,598.04,597.53,2.25271122]
[1746650505803,2.3049222,598.03,597.53,2.25271122]
[1746650506006,1.28386771,598.02,597.53,2.25271122]
[1746650506205,1.02105449,598.03,597.53,2.25271122]
[1746650506206,1.28386771,598.01,597.53,2.25271122]
[1746650506403,2.30461255,598.0,597.53,2.25271122]
[1746650506708,1.28386771,597.99,597.53,2.25271122]
[1746650506906,1.28386771,597.98,597.53,2.25271122]
[1746650507107,1.28386771,597.97,597.53,2.25271122]
[1746650507305,1.28386771,597.96,597.53,2.25271122]
[1746650507504,2.30461255,597.95,597.53,2.25271122]
[1746650507809,1.28386771,597.94,597.53,2.25271122]
[1746650508009,1.28386771,597.93,597.53,2.25271122]
[1746650508309,2.29977483,597.92,597.53,2.25271122]
[1746650508510,1.28081264,597.91,597.53,2.25271122]
[1746650508805,2.29977483,597.9,597.53,2.25271122]
[1746650509112,1.28081264,597.89,597.53,2.25271122]
[1746650509404,1.01896219,597.88,597.53,2.25271122]
[1746650510006,1.01896219,597.87,597.53,2.25271122]
[1746650510709,1.01896219,597.86,597.53,2.25271122]
[1746650511409,0.29113908,598.13,597.53,2.25271122]
[1746650511710,1.28186163,598.12,597.53,2.25271122]
[1746650511910,2.30117288,598.11,597.53,2.25271122]
[1746650512103,1.28186163,598.1,597.53,2.25271122]
[1746650512309,1.28186163,598.09,597.53,2.25271122]
[1746650512509,2.30117288,598.08,597.53,2.25271122]
[1746650512706,1.28186163,598.07,597.53,2.25271122]
[1746650513009,1.28186163,598.06,597.53,2.25271122]
[1746650513209,1.28186163,598.05,597.53,2.25271122]
[1746650513512,2.30117288,598.04,597.53,2.25271122]
[1746650513811,1.28145861,598.03,597.53,2.25271122]
[1746650514012,1.28145861,598.02,597.53,2.25271122]
[1746650514206,1.28145861,598.01,597.53,2.25271122]
[1746650514411,1.28145861,598.0,597.53,2.25271122]
[1746650514707,2.30076986,597.99,597.53,2.25271122]
[1746650514908,1.28145861,597.98,597.53,2.25271122]
[1746650515107,1.28145861,597.97,597.53,2.25271122]
[1746650515312,1.28145861,597.96,597.53,2.25271122]
[1746650515511,1.28145861,597.95,597.53,2.25271122]
[1746650515815,2.30076986,597.94,597.53,2.25271122]
[1746650516007,1.28145861,597.93,597.53,2.25271122]
[1746650516211,2.30076986,597.92,597.53,2.25271122]
[1746650516409,1.28145861,597.91,597.53,2.25271122]
[1746650516608,2.30076986,597.9,597.53,2.25271122]
[1746650516811,1.01931125,597.9,597.53,2.25271122]
[1746650517512,1.01931125,597.89,597.53,2.25271122]
[1746650517715,1.01931125,597.88,597.53,2.25271122]
[1746650518313,1.01931125,597.87,597.53,2.25271122]
[1746650519211,1.01931125,597.86,597.53,2.25271122]
[1746650519710,1.02869179,598.91,597.53,2.25271122]
[1746650519910,0.2911403,598.13,597.53,2.25271122]
[1746650520115,2.29936429,598.12,597.53,2.25271122]
[1746650520314,1.28070575,598.11,597.53,2.25271122]
[1746650520614,1.28070575,598.1,597.53,2.25271122]
[1746650520815,1.28102486,598.09,597.53,2.25271122]
[1746650521009,2.2996834,598.08,597.53,2.25271122]
[1746650521211,1.28102486,598.07,597.53,2.25271122]
[1746650521409,1.28102486,598.06,597.53,2.25271122]
[1746650521613,2.2996834,598.05,597.53,2.25271122]
[1746650521915,2.2996834,598.04,597.53,2.25271122]
[1746650522116,1.28102486,598.03,597.53,2.25271122]
[1746650522417,1.28097718,598.02,597.53,2.25271122]
[1746650522616,1.28097718,598.01,597.53,2.25271122]
[1746650522917,2.30011581,598.0,597.53,1.43771122]
[1746650523116,1.28145727,597.99,597.53,1.43771122]
[1746650523317,1.28145727,597.98,597.53,1.43771122]
[1746650523515,1.28145727,597.97,597.53,1.43771122]
[1746650523711,1.28145727,597.96,597.53,1.43771122]
[1746650523917,1.28145727,597.95,597.53,1.43771122]
[1746650524117,1.01865854,597.98,597.53,1.43771122]
[1746650524310,2.30004629,597.97,597.53,1.43771122]
[1746650524515,1.28138775,597.96,597.53,1.43771122]
[1746650524714,1.28138775,597.95,597.53,1.43771122]
[1746650524911,1.28138775,597.94,597.53,1.43771122]
[1746650525219,2.30004629,597.93,597.53,1.43771122]
[1746650525516,2.30004629,597.92,597.53,1.43771122]
[1746650525712,2.30004629,597.91,597.53,1.43771122]
[1746650525919,1.01865854,597.91,597.53,1.43771122]
[1746650526219,1.01865854,597.9,597.53,1.43771122]
[1746650526419,1.28475541,597.89,597.53,1.43771122]
[1746650526619,1.01865854,597.9,597.53,1.43771122]
[1746650527018,1.01865854,597.89,597.53,1.43771122]
[1746650527518,1.01865854,597.88,597.53,1.43771122]
[1746650528118,1.01865854,597.87,597.53,1.43771122]
[1746650528715,1.01865854,597.86,597.53,1.43771122]
[1746650529320,0.29114152,598.12,597.53,1.43771122]
[1746650529521,1.28372141,598.11,597.53,1.43771122]
[1746650529721,2.3020544,598.1,597.53,1.43771122]
[1746650529929,1.28372141,598.09,597.53,1.43771122]
[1746650530122,1.28372141,598.08,597.53,1.43771122]
[1746650530321,1.28372141,598.07,597.53,1.43771122]
[1746650530521,1.28372141,598.06,597.53,1.43771122]
[1746650530723,1.28356045,598.05,597.53,0.33471122]
[1746650530922,2.30189344,598.04,597.53,0.33471122]
[1746650531119,1.28356045,598.03,597.53,0.33471122]
[1746650531317,1.28356045,598.02,597.53,0.33471122]
[1746650531618,1.28356045,598.01,597.53,0.33471122]
[1746650531822,1.28356706,598.0,597.53,0.33471122]
[1746650532022,1.28356706,597.99,597.53,0.33471122]
[1746650532223,1.28356706,597.98,597.53,0.33471122]
[1746650532423,1.28355556,597.97,597.53,0.33471122]
[1746650532623,1.28355556,597.96,597.53,0.33471122]
[1746650532924,2.30188855,597.95,597.53,0.33471122]
[1746650533122,2.30188855,597.94,597.53,0.33471122]
[1746650533322,1.28355556,597.93,597.53,0.33471122]
[1746650533522,2.30188855,597.92,597.53,0.33471122]
[1746650533718,1.28355556,597.91,597.53,0.33471122]
[1746650533919,1.28355556,597.9,597.53,0.33471122]
[1746650534124,2.30188855,597.89,597.53,0.33471122]
[1746650534322,1.28355556,597.88,597.53,0.33471122]
[1746650534625,1.01833299,597.88,597.53,0.33471122]
[1746650535019,1.01833299,597.87,597.53,0.33471122]
[1746650535524,1.01833299,597.86,597.53,0.33471122]
[1746650536524,1.01833299,597.85,597.53,0.33471122]
[1746650537127,1.01833299,597.84,597.53,0.33471122]
[1746650537825,1.01833299,597.83,597.53,0.33471122]
[1746650538523,0.29115004,598.12,597.53,0.33471122]
[1746650538724,1.28306534,598.11,597.53,0.33471122]
[1746650539025,1.28306534,598.1,597.53,0.33471122]
[1746650539228,1.28306534,598.09,597.53,0.33471122]
[1746650539429,0.29115004,598.12,597.53,0.33471122]
[1746650539430,2.30116699,598.08,597.53,0.33471122]
[1746650539625,1.28306534,598.07,597.53,0.33471122]
[1746650539829,1.28306534,598.06,597.53,0.33471122]
[1746650540029,2.30116699,598.05,597.53,0.33471122]
[1746650540329,1.28306534,598.04,597.53,0.33471122]
[1746650540531,1.28306534,598.03,597.53,0.33471122]
[1746650540725,2.30116699,598.02,597.53,0.33471122]
[1746650540925,1.28306534,598.01,597.53,0.33471122]
[1746650541131,1.28306534,598.0,597.53,0.33471122]
[1746650541326,1.28306534,597.99,597.53,0.33471122]
[1746650541525,1.28306534,597.98,597.53,0.33471122]
[1746650541730,2.30178568,597.97,597.53,0.33471122]
[1746650541928,1.28368403,597.96,597.53,0.33471122]
[1746650542127,1.28368403,597.95,597.53,0.33471122]
[1746650542325,1.28368403,597.94,597.53,0.33471122]
[1746650542627,1.28368403,597.93,597.53,0.33471122]
[1746650542830,2.30178568,597.92,597.53,0.33471122]
[1746650543027,1.28368403,597.91,597.53,0.33471122]
[1746650543231,1.28368403,597.9,597.53,0.33471122]
[1746650543430,1.28368403,597.89,597.53,0.33471122]
[1746650543730,1.28368403,597.88,597.53,0.33471122]
[1746650543930,1.28368403,597.87,597.53,0.33471122]
[1746650544226,1.28368403,597.86,597.53,0.33471122]
[1746650544428,1.01810165,597.87,597.53,0.33471122]
[1746650544727,1.01810165,597.85,597.53,0.33471122]
[1746650545329,1.01810165,597.84,597.53,0.33471122]
[1746650546128,1.01810165,597.83,597.53,0.33471122]
[1746650546731,1.01810165,597.82,597.53,0.33471122]
[1746650547133,1.01810165,597.81,597.53,0.33471122]
[1746650547432,1.01810165,597.8,597.53,0.33471122]
[1746650547832,0.29115126,598.12,597.53,0.33471122]
[1746650548035,1.28422576,598.11,597.53,0.33471122]
[1746650548233,1.28422576,598.1,597.53,0.33471122]
[1746650548429,1.28422576,598.09,597.53,0.33471122]
[1746650548627,1.28422576,598.08,597.53,0.33471122]
[1746650548832,1.27591223,598.07,597.53,0.33471122]
[1746650549030,1.01892171,598.09,597.53,0.33471122]
[1746650549235,1.01892171,598.06,597.53,0.33471122]
[1746650549535,1.01892171,598.05,597.53,0.33471122]
[1746650550337,1.01892171,598.04,597.53,0.33471122]
[1746650550837,1.01892171,598.03,597.53,0.33471122]
[1746650551237,1.01892171,598.02,597.53,0.33471122]
[1746650551437,1.01892171,598.02,597.5,1.065]
[1746650551833,1.01892171,598.01,597.5,1.065]
[1746650552437,1.01892171,598.0,597.5,1.065]
[1746650552838,1.01892171,597.99,597.5,1.065]
[1746650553136,1.01892171,597.98,597.5,1.065]
[1746650554038,1.01892171,597.97,597.5,1.065]
[1746650554336,1.01892171,597.96,597.5,1.065]
[1746650554638,1.01892171,597.95,597.5,1.065]
[1746650555034,1.01892171,597.94,597.5,1.065]
[1746650555734,1.01892171,597.93,597.5,1.065]
[1746650556034,1.01892171,597.92,597.5,1.065]
[1746650556338,1.01892171,597.91,597.5,1.065]
[1746650557139,1.01892171,597.9,597.5,1.065]
[1746650557639,1.01892171,597.89,597.5,1.065]
[1746650558134,1.01892171,597.88,597.5,1.065]
[1746650558535,1.01892171,597.87,597.5,1.065]
[1746650559537,1.01892171,597.86,597.5,1.065]
[1746650560038,1.01892171,597.85,597.5,1.065]
[1746650560242,1.01892171,597.84,597.5,1.065]
[1746650560742,1.28197902,597.83,597.5,1.065]
[1746650560941,1.28197902,597.82,597.5,1.065]
[1746650561138,1.28197902,597.81,597.5,1.065]
[1746650561337,1.28197902,597.8,597.5,1.065]
[1746650561541,1.01892171,597.79,597.5,1.065]
[1746650562037,1.01892171,597.78,597.5,1.065]
[1746650562337,1.01892171,597.77,597.5,1.065]
[1746650562542,0.29116588,598.03,597.5,1.065]
[1746650562743,1.27990968,598.02,597.5,1.065]
[1746650562945,1.27990656,598.01,597.5,1.065]
[1746650563149,1.27990656,598.0,597.5,1.065]
[1746650563348,2.29551843,597.99,597.5,1.065]
[1746650563544,1.27990656,597.98,597.5,1.065]
[1746650563748,1.27990656,597.97,597.5,1.065]
[1746650563944,2.29551843,597.96,597.5,1.065]
[1746650564148,1.27990656,597.95,597.5,1.065]
[1746650564349,2.29551843,597.94,597.5,1.065]
[1746650564548,1.27803155,597.93,597.5,1.065]
[1746650564848,2.29364342,597.92,597.5,1.065]
[1746650565043,1.27803155,597.91,597.5,1.065]
[1746650565242,1.27803155,597.9,597.5,1.065]
[1746650565446,2.29364342,597.89,597.43,0.883]
[1746650565647,1.27803155,597.88,597.43,0.883]
[1746650565847,2.29364342,597.87,597.43,0.883]
[1746650566049,1.27803155,597.86,597.43,0.883]
[1746650566246,2.29364342,597.85,597.43,0.883]
[1746650566452,1.01561187,597.85,597.43,0.883]
[1746650566750,1.01561187,597.84,597.43,0.883]